bitfinex/quotes_SOLUSD_20220114
["timestamp","ask_amount","ask_price","bid_price","bid_amount"]
[1642178490455,24.9762,147.34,147.23,10.11]
[1642178490655,20.01392321,147.33,147.23,10.11]
[1642178491056,20.26392321,147.33,147.23,10.11]
[1642178491961,2.715,147.32,147.23,10.11]
[1642178494557,2.715,147.32,147.23,9.86]
[1642178495560,2.965,147.32,147.23,9.86]
[1642178495957,2.965,147.32,147.23,10.11]
[1642178497160,2.715,147.32,147.23,10.11]
[1642178497362,8.965,147.32,147.23,10.11]
[1642178497962,8.715,147.32,147.23,10.11]
[1642178498761,2.965,147.32,147.23,10.11]
[1642178499161,8.965,147.32,147.23,10.11]
[1642178500161,19.1527,147.32,147.23,10.11]
[1642178500361,19.1527,147.32,147.23,0.25]
[1642178500564,41.7538,147.32,147.21,10.00450257]
[1642178500761,41.7538,147.32,147.21,4.00450257]
[1642178501361,109.7538,147.32,147.21,4.00450257]
[1642178501567,109.7538,147.32,147.21,0.25]
[1642178502065,119.6138,147.32,147.2,14.17280257]
[1642178503164,51.6138,147.32,147.2,14.17280257]
[1642178503367,53.55148996,147.32,147.23,1.91072013]
[1642178503965,43.11378996,147.32,147.24,4.71997669]
[1642178504167,17.79768996,147.32,147.24,4.71997669]
[1642178504365,17.79768996,147.32,147.23,1.91072013]
[1642178504566,11.79768996,147.32,147.23,2.16072013]
[1642178504967,9.86,147.32,147.24,1.91072013]
[1642178505366,9.86,147.32,147.24,2.16072013]
[1642178507068,15.86,147.32,147.24,2.16072013]
[1642178508499,15.86,147.32,147.25,1.91072013]
[1642178508995,15.86,147.32,147.25,2.16072013]
[1642178510500,18.575,147.32,147.25,2.16072013]
[1642178512202,15.86,147.32,147.25,2.16072013]
[1642178512804,15.86,147.32,147.25,1.16072013]
[1642178513003,15.86,147.32,147.25,0.91072013]
[1642178513203,15.86,147.32,147.25,1.16072013]
[1642178513703,26.0472,147.32,147.25,1.16072013]
[1642178514506,26.0472,147.32,147.25,0.91072013]
[1642178514705,15.86,147.32,147.25,0.91072013]
[1642178515108,9.86,147.32,147.25,0.91072013]
[1642178516508,46.31092321,147.33,147.25,0.91072013]
[1642178516808,43.59592321,147.33,147.25,0.91072013]
[1642178518112,20.01392321,147.33,147.25,17.62992013]
[1642178518312,20.01392321,147.33,147.26,8.15179238]
[1642178518512,1.93768996,147.34,147.26,8.40179238]
[1642178518910,24.5245,147.36,147.26,8.40179238]
[1642178519513,28.4298803,147.35,147.26,14.40179238]
[1642178519713,28.4298803,147.35,147.26,6.25]
[1642178519911,28.4298803,147.35,147.26,10.433]
[1642178520112,28.4298803,147.35,147.26,0.25]
[1642178520510,28.4298803,147.35,147.25,30.45117588]
[1642178520912,38.6145803,147.35,147.25,40.63497588]
[1642178521116,38.6145803,147.35,147.25,6.25]
[1642178521316,44.6145803,147.35,147.25,6.25]
[1642178521511,44.6145803,147.35,147.25,6.0]
[1642178521713,2.715,147.34,147.25,6.0]
[1642178522316,27.1417,147.34,147.24,9.75450257]
[1642178522513,24.4267,147.34,147.24,6.0]
[1642178522714,34.6121,147.34,147.24,16.1848]
[1642178523015,34.6121,147.34,147.24,16.4348]
[1642178523415,24.4267,147.34,147.24,16.4348]
[1642178524415,27.1417,147.34,147.24,16.4348]
[1642178525718,24.4267,147.34,147.24,16.4348]
[1642178526816,27.1417,147.34,147.24,26.2948]
[1642178528822,37.3272,147.34,147.24,15.86]
[1642178529020,43.5772,147.34,147.24,9.86]
[1642178529318,45.27797588,147.34,147.24,9.86]
[1642178529919,45.27797588,147.34,147.21,3.75450257]
[1642178530121,9.86,147.33,147.21,3.75450257]
[1642178530321,10.1905,147.27,147.2,3.75450257]
[1642178530521,15.23991833,147.25,147.2,3.75450257]
[1642178531823,15.23991833,147.25,147.2,4.00450257]
[1642178532226,15.23991833,147.25,147.2,0.25]
[1642178532624,15.23991833,147.25,147.18,30.65783241]
[1642178534057,15.23991833,147.25,147.18,0.25]
[1642178534256,15.23991833,147.25,147.17,20.2997]
[1642178534656,15.23991833,147.25,147.17,24.05420257]
[1642178535860,15.23991833,147.25,147.17,20.2997]
[1642178537464,23.0061,147.27,147.17,20.2997]
[1642178537662,23.0061,147.27,147.17,22.00047588]
[1642178537862,2.717,147.3,147.17,28.00047588]
[1642178538062,0.25,147.3,147.17,28.00047588]
[1642178538263,2.716,147.29,147.17,28.00047588]
[1642178538465,23.4385663,147.28,147.18,3.87002103]
[1642178538664,23.4385663,147.28,147.19,10.1879]
[1642178538863,26.1545663,147.28,147.19,10.1879]
[1642178539163,26.1545663,147.28,147.19,10.4379]
[1642178540566,23.4385663,147.28,147.19,12.13867588]
[1642178541667,23.4385663,147.28,147.2,3.87571768]
[1642178541869,23.4385663,147.28,147.2,14.06321768]
[1642178542066,23.4385663,147.28,147.2,14.31321768]
[1642178542267,23.4385663,147.28,147.2,4.12571768]
[1642178543569,23.4385663,147.28,147.2,0.25]
[1642178543771,23.4385663,147.28,147.19,4.00450257]
[1642178544368,23.4385663,147.28,147.19,14.19260257]
[1642178544773,23.4385663,147.28,147.19,15.89337845]
[1642178545172,23.4385663,147.28,147.2,3.87547031]
[1642178545571,23.4385663,147.28,147.2,14.31277031]
[1642178545970,24.5392,147.29,147.2,14.31277031]
[1642178546171,24.5392,147.29,147.2,16.01354619]
[1642178547074,24.5392,147.29,147.2,12.13807588]
[1642178547272,24.5392,147.29,147.2,29.86407588]
[1642178547472,2.716,147.31,147.2,29.86407588]
[1642178547674,2.716,147.31,147.2,53.44317588]
[1642178547875,2.966,147.31,147.2,53.44317588]
[1642178548073,26.2834505,147.31,147.2,53.44317588]
[1642178548574,26.2834505,147.31,147.23,10.1853]
[1642178548975,26.2834505,147.31,147.23,10.4353]
[1642178549576,32.2834505,147.31,147.23,10.4353]
[1642178550975,32.0334505,147.31,147.23,10.4353]
[1642178551777,29.3174505,147.31,147.23,10.4353]
[1642178553376,29.3174505,147.31,147.23,0.25]
[1642178553577,29.3174505,147.31,147.21,3.75450257]
[1642178553878,2.716,147.3,147.21,3.75450257]
[1642178554075,8.716,147.3,147.21,3.75450257]
[1642178554278,33.1836,147.3,147.21,3.87517438]
[1642178554978,33.1836,147.3,147.21,4.12517438]
[1642178555379,33.1836,147.3,147.21,0.25]
[1642178555581,33.1836,147.3,147.2,33.6891]
[1642178555779,30.4676,147.3,147.2,33.6891]
[1642178556780,30.4676,147.3,147.21,3.87509156]
[1642178556981,30.4676,147.3,147.21,10.12509156]
[1642178557380,30.4676,147.3,147.21,20.31189156]
[1642178557581,30.4676,147.3,147.21,24.06639413]
[1642178558482,30.4676,147.3,147.21,20.19130257]
[1642178558682,30.4676,147.3,147.21,16.4368]
[1642178562209,30.4676,147.3,147.2,3.75450257]
[1642178562409,2.716,147.29,147.2,3.75450257]
[1642178562611,12.576,147.29,147.19,3.75450257]
[1642178562813,1.70077588,147.28,147.19,3.75450257]
[1642178563017,2.716,147.27,147.19,3.75450257]
[1642178563212,70.716,147.27,147.19,3.75450257]
[1642178563514,78.66677588,147.27,147.19,3.75450257]
[1642178563713,78.66677588,147.27,147.19,4.00450257]
[1642178563914,10.1916,147.25,147.16,3.75450257]
[1642178564213,2.717,147.24,147.16,3.75450257]
[1642178564412,8.967,147.25,147.16,3.75450257]
[1642178564612,6.0,147.24,147.16,3.75450257]
[1642178564814,2.717,147.23,147.16,3.75450257]
[1642178565015,20.35234813,147.22,147.16,3.75450257]
[1642178565318,20.35234813,147.22,147.13,60.94727157]
[1642178565513,20.35234813,147.22,147.13,61.19727157]
[1642178565815,23.06934813,147.22,147.13,32.84413264]
[1642178566014,23.06934813,147.22,147.13,7.88083264]
[1642178566213,29.06934813,147.22,147.13,7.63083264]
[1642178566414,29.06934813,147.22,147.14,7.63083264]
[1642178567314,29.06934813,147.22,147.14,3.87633007]
[1642178567514,29.06934813,147.22,147.14,0.25]
[1642178568017,29.06934813,147.22,147.13,7.88083264]
[1642178568218,26.35234813,147.22,147.13,7.88083264]
[1642178568416,26.35234813,147.22,147.13,4.00450257]
[1642178568818,20.35234813,147.22,147.13,4.00450257]
[1642178569016,26.35234813,147.22,147.13,4.00450257]
[1642178569217,26.35234813,147.22,147.14,3.87702968]
[1642178569619,26.35234813,147.22,147.14,4.12702968]
[1642178570822,25.4135,147.23,147.14,4.12702968]
[1642178571020,22.6965,147.23,147.14,11.82780556]
[1642178571222,22.6965,147.23,147.14,11.81077588]
[1642178571420,22.6965,147.23,147.14,17.81077588]
[1642178572220,22.6965,147.23,147.15,7.63088695]
[1642178572420,26.51448448,147.25,147.15,7.63088695]
[1642178572621,26.51448448,147.25,147.16,1.70077588]
[1642178573020,26.51448448,147.25,147.16,1.95077588]
[1642178573219,26.51448448,147.25,147.16,0.25]
[1642178573422,26.51448448,147.25,147.16,10.44]
[1642178573824,26.51448448,147.25,147.15,7.63088695]
[1642178574025,2.717,147.24,147.15,7.63088695]
[1642178574222,27.1998,147.24,147.15,7.63088695]
[1642178574422,33.1998,147.24,147.17,3.87638438]
[1642178574623,43.3931,147.24,147.17,3.87638438]
[1642178574822,43.6431,147.24,147.17,3.87638438]
[1642178575424,43.6431,147.24,147.13,7.63088695]
[1642178576025,43.6431,147.24,147.13,7.88088695]
[1642178576427,43.6431,147.24,147.13,18.07328695]
[1642178577227,33.1998,147.24,147.13,18.07328695]
[1642178577427,27.1998,147.24,147.14,13.73638438]
[1642178577628,24.4828,147.24,147.16,10.1899]
[1642178578027,24.4828,147.24,147.16,10.4399]
[1642178578429,24.4828,147.24,147.17,4.01488149]
[1642178578628,24.4828,147.24,147.17,14.20428149]
[1642178578830,24.4828,147.24,147.17,14.45428149]
[1642178579229,24.9138,147.27,147.17,14.45428149]
[1642178579429,24.9138,147.27,147.17,18.33066587]
[1642178579632,24.9138,147.27,147.17,28.19066587]
[1642178580230,2.717,147.3,147.18,68.0]
[1642178580431,2.717,147.3,147.22,10.1858]
[1642178580832,2.717,147.3,147.22,10.4358]
[1642178581236,2.717,147.3,147.23,29.16531986]
[1642178581438,2.717,147.3,147.23,39.35061986]
[1642178581640,2.717,147.3,147.23,39.60061986]
[1642178581838,2.716,147.32,147.23,57.49761986]
[1642178582038,2.715,147.34,147.23,57.75761986]
[1642178582238,2.715,147.34,147.23,65.45839574]
[1642178582641,2.715,147.34,147.24,68.0]
[1642178582841,2.715,147.34,147.28,10.1821]
[1642178583144,2.715,147.34,147.28,10.4321]
[1642178583741,2.715,147.34,147.28,0.25]
[1642178584142,2.715,147.34,147.26,10.1829]
[1642178584343,2.715,147.34,147.26,10.4329]
[1642178584941,8.965,147.34,147.24,24.0955]
[1642178585142,1.70077588,147.33,147.23,32.91982243]
[1642178585348,2.715,147.32,147.23,32.91982243]
[1642178585542,11.72109816,147.31,147.23,32.91982243]
[1642178585943,17.72109816,147.31,147.23,32.91982243]
[1642178586443,2.715,147.32,147.23,33.16982243]
[1642178586664,2.716,147.33,147.23,29.41531986]
[1642178587067,2.966,147.33,147.23,29.41531986]
[1642178587271,2.716,147.33,147.23,39.60081986]
[1642178587469,2.716,147.33,147.23,63.44959574]
[1642178587668,2.715,147.36,147.23,63.44959574]
[1642178587867,2.715,147.36,147.24,22.9459]
[1642178588068,2.715,147.36,147.25,9.86]
[1642178588268,6.59001954,147.37,147.25,11.56077588]
[1642178588472,2.715,147.38,147.26,68.0]
[1642178588677,2.715,147.38,147.26,86.079]
[1642178588876,2.715,147.38,147.29,10.1808]
[1642178589071,28.36861954,147.39,147.29,16.4308]
[1642178589272,28.36861954,147.39,147.29,24.4528]
[1642178589273,3.87501954,147.39,147.29,24.4528]
[1642178589475,3.87501954,147.39,147.3,4.01488149]
[1642178589670,9.87501954,147.39,147.3,4.01488149]
[1642178589872,6.0,147.39,147.3,10.26488149]
[1642178590277,12.58901954,147.41,147.3,4.26488149]
[1642178590573,2.714,147.38,147.3,4.26488149]
[1642178590774,25.8284,147.4,147.3,0.25]
[1642178590974,6.0,147.38,147.28,10.11]
[1642178591173,2.714,147.37,147.28,10.11]
[1642178591373,2.714,147.39,147.28,10.11]
[1642178591574,8.964,147.39,147.28,10.11]
[1642178591775,8.964,147.39,147.29,27.7721234]
[1642178591972,8.714,147.39,147.29,44.2034234]
[1642178592172,8.714,147.39,147.29,46.5684234]
[1642178592372,8.714,147.39,147.29,46.8284234]
[1642178592975,8.714,147.39,147.29,52.8284234]
[1642178593277,6.0,147.39,147.29,52.8284234]
[1642178593473,29.1144,147.4,147.29,52.5684234]
[1642178594076,29.1144,147.4,147.29,75.6615234]
[1642178595979,29.1144,147.4,147.29,69.6615234]
[1642178597885,2.714,147.39,147.29,0.25]
[1642178598083,8.964,147.39,147.28,0.25]
[1642178598283,1.70077588,147.38,147.28,0.25]
[1642178598583,2.714,147.37,147.27,4.00450257]
[1642178598988,17.70221413,147.36,147.27,3.75450257]
[1642178599185,27.88611413,147.36,147.27,3.75450257]
[1642178599385,33.88611413,147.36,147.27,3.75450257]
[1642178599588,34.13611413,147.36,147.27,3.75450257]
[1642178599785,33.88611413,147.36,147.27,3.75450257]
[1642178600087,2.715,147.39,147.26,100.66630875]
[1642178600287,2.715,147.39,147.27,10.1826]
[1642178600484,2.715,147.39,147.27,17.0526]
[1642178600684,8.715,147.39,147.28,9.86]
[1642178600884,6.0,147.39,147.28,9.86]
[1642178601087,6.0,147.39,147.28,33.8806]
[1642178601385,29.1144,147.4,147.28,33.8806]
[1642178601583,29.1144,147.4,147.31,10.1794]
[1642178601786,29.1144,147.4,147.32,10.3738926]
[1642178601989,29.1144,147.4,147.32,10.6238926]
[1642178602588,23.1144,147.4,147.32,10.6238926]
[1642178602789,23.1144,147.4,147.32,20.8027926]
[1642178602989,2.714,147.42,147.32,88.8027926]
[1642178603189,26.58831954,147.43,147.32,20.8027926]
[1642178603389,26.58831954,147.43,147.32,26.8027926]
[1642178603688,22.7133,147.43,147.32,26.8027926]
[1642178603888,6.58901954,147.44,147.32,26.8027926]
[1642178604088,6.58901954,147.44,147.32,94.8027926]
[1642178604288,12.58901954,147.44,147.32,94.8027926]
[1642178604489,12.58901954,147.44,147.32,26.8027926]
[1642178604691,8.714,147.44,147.32,26.8027926]
[1642178606093,8.714,147.44,147.32,36.6627926]
[1642178606294,2.714,147.45,147.33,68.0]
[1642178606492,3.87501954,147.46,147.39,10.1734]
[1642178606896,3.87501954,147.46,147.39,10.4234]
[1642178607092,24.9393,147.47,147.39,10.4234]
[1642178607297,6.0,147.46,147.4,22.80630875]
[1642178607493,30.9393,147.47,147.4,0.25]
[1642178607895,2.713,147.46,147.4,0.25]
[1642178608296,8.713,147.46,147.4,0.25]
[1642178608495,27.6523,147.47,147.4,10.4237]
[1642178608695,33.6523,147.47,147.4,10.1737]
[1642178608896,33.6523,147.47,147.4,10.4237]
[1642178609294,33.6523,147.47,147.4,39.62031468]
[1642178609796,27.6523,147.47,147.4,39.62031468]
[1642178610195,33.6523,147.47,147.4,39.62031468]
[1642178611298,33.6523,147.47,147.4,45.30331468]
[1642178612196,27.6523,147.47,147.4,45.30331468]
[1642178613328,27.6523,147.47,147.4,39.62031468]
[1642178613529,24.9393,147.47,147.4,39.62031468]
[1642178614732,24.9393,147.47,147.37,43.769]
[1642178614733,24.9393,147.47,147.38,10.1748]
[1642178614933,32.89007588,147.47,147.37,9.86]
[1642178615134,2.713,147.46,147.37,9.86]
[1642178615331,25.8202,147.46,147.37,9.86]
[1642178615533,33.77097588,147.46,147.37,9.86]
[1642178616044,43.94837588,147.46,147.37,0.25]
[1642178616433,43.94837588,147.46,147.33,20.2881]
[1642178616834,43.44837588,147.46,147.33,20.2881]
[1642178617034,43.44837588,147.46,147.34,30.09806222]
[1642178617436,47.32339542,147.46,147.34,30.34806222]
[1642178618239,47.32339542,147.46,147.34,40.52576222]
[1642178619038,45.62261954,147.46,147.34,40.52576222]
[1642178621042,45.62261954,147.46,147.34,10.4277]
[1642178621242,45.62261954,147.46,147.34,0.25]
[1642178621445,45.62261954,147.46,147.33,10.11]
[1642178621841,47.32339542,147.46,147.33,10.11]
[1642178622946,9.86,147.45,147.33,0.25]
[1642178623246,10.1822,147.39,147.3,3.75450257]
[1642178623445,2.714,147.38,147.3,3.75450257]
[1642178623646,13.85089427,147.38,147.3,3.75450257]
[1642178624247,24.03339427,147.38,147.3,3.75450257]
[1642178624446,24.03339427,147.38,147.3,0.25]
[1642178624847,24.03339427,147.38,147.27,13.93680257]
[1642178625048,2.715,147.37,147.27,9.75450257]
[1642178625251,8.715,147.37,147.27,3.75450257]
[1642178625548,8.965,147.37,147.27,3.75450257]
[1642178625747,31.9858,147.37,147.26,37.70570257]
[1642178626146,10.1847,147.35,147.26,37.70570257]
[1642178626349,10.1847,147.35,147.26,13.86450257]
[1642178626647,16.4347,147.35,147.26,13.86450257]
[1642178627047,16.4347,147.35,147.26,9.86]
[1642178627048,10.4347,147.35,147.26,9.86]
[1642178627247,16.4347,147.35,147.24,3.75450257]
[1642178627446,16.4347,147.35,147.24,3.25450257]
[1642178627447,25.9579,147.34,147.24,3.25450257]
[1642178627647,10.1866,147.32,147.24,3.25450257]
[1642178627850,29.81890436,147.31,147.24,3.25450257]
[1642178628347,29.81890436,147.31,147.23,9.86]
[1642178628547,29.81890436,147.31,147.23,10.11]
[1642178628747,40.00610436,147.31,147.23,9.86]
[1642178628947,2.716,147.3,147.19,5.82194371]
[1642178629347,8.966,147.3,147.19,5.82194371]
[1642178629549,2.716,147.3,147.18,23.82432151]
[1642178629747,10.1892,147.29,147.18,34.01322151]
[1642178629948,26.6492,147.3,147.18,40.26322151]
[1642178630149,23.9332,147.3,147.19,9.86]
[1642178630351,23.9332,147.3,147.19,15.86]
[1642178630550,23.9332,147.3,147.19,17.81077588]
[1642178630948,23.9332,147.3,147.19,29.92302437]
[1642178631452,26.6492,147.3,147.19,29.92302437]
[1642178632051,26.6492,147.3,147.2,3.87532437]
[1642178632249,26.6492,147.3,147.2,14.06272437]
[1642178632450,26.6492,147.3,147.2,20.31272437]
[1642178632855,26.6492,147.3,147.21,3.87532437]
[1642178633052,26.8992,147.3,147.21,4.12532437]
[1642178633452,26.8992,147.3,147.21,14.31202437]
[1642178634053,26.8992,147.3,147.21,10.4367]
[1642178634254,26.8992,147.3,147.23,1.93762231]
[1642178634453,26.8992,147.3,147.23,2.18762231]
[1642178634654,26.6492,147.3,147.24,9.35587984]
[1642178634853,23.9332,147.3,147.24,9.35587984]
[1642178635054,23.9332,147.3,147.24,9.60587984]
[1642178635354,28.05642037,147.32,147.24,9.60587984]
[1642178635553,25.34042037,147.32,147.24,9.60587984]
[1642178635753,57.07089669,147.32,147.24,9.60587984]
[1642178635953,55.14507632,147.32,147.25,1.93762231]
[1642178636153,57.86007632,147.32,147.25,1.93762231]
[1642178636352,57.86007632,147.32,147.25,2.18762231]
[1642178637357,55.14507632,147.32,147.25,2.18762231]
[1642178637854,23.4146,147.32,147.25,12.37172231]
[1642178639259,23.4146,147.32,147.25,2.18762231]
[1642178639656,23.4146,147.32,147.26,1.93762231]
[1642178639857,26.1296,147.32,147.26,1.93762231]
[1642178640060,26.1296,147.32,147.26,2.18762231]
[1642178640561,26.1296,147.32,147.26,0.25]
[1642178640959,26.1296,147.32,147.25,2.18762231]
[1642178641160,26.1296,147.32,147.25,1.93762231]
[1642178641360,26.3796,147.32,147.25,1.93762231]
[1642178641760,26.1296,147.32,147.25,1.93762231]
[1642178641959,26.3796,147.32,147.24,28.86678612]
[1642178642360,26.1296,147.32,147.24,28.86678612]
[1642178642561,26.1296,147.32,147.24,29.11678612]
[1642178643961,32.1296,147.32,147.24,29.11678612]
[1642178644364,26.1296,147.32,147.24,29.11678612]
[1642178648767,26.1296,147.32,147.24,39.30168612]
[1642178649066,2.715,147.32,147.25,1.93762231]
[1642178649268,1.92582037,147.34,147.25,1.93762231]
[1642178649467,1.92582037,147.34,147.25,8.18762231]
[1642178649968,23.4683,147.35,147.28,10.1816]
[1642178650367,23.4683,147.35,147.28,10.4316]
[1642178650972,23.4683,147.35,147.28,12.36922231]
[1642178651170,57.1050386,147.37,147.28,12.36922231]
[1642178652470,25.65802037,147.37,147.28,12.36922231]
[1642178652877,1.92582037,147.37,147.28,28.22922231]
[1642178653474,1.92582037,147.37,147.28,28.48922231]
[1642178653673,1.92582037,147.37,147.29,1.70077588]
[1642178653873,1.92582037,147.38,147.33,10.1771]
[1642178654113,1.92582037,147.38,147.33,23.8011]
[1642178654873,1.92582037,147.38,147.33,33.6611]
[1642178655171,1.92582037,147.41,147.33,33.6611]
[1642178656174,1.92582037,147.42,147.33,33.9211]
[1642178656375,1.92582037,147.42,147.34,68.0]
[1642178656574,1.92582037,147.42,147.38,10.1743]
[1642178656775,1.92582037,147.42,147.38,18.7423]
[1642178656976,1.92582037,147.42,147.38,24.9923]
[1642178657377,1.92582037,147.42,147.38,34.8523]
[1642178657577,5.05213608,147.47,147.39,26.92916381]
[1642178657779,5.05213608,147.47,147.43,10.1703]
[1642178657978,5.05213608,147.47,147.44,4.32521717]
[1642178658180,2.713,147.48,147.44,4.32521717]
[1642178658481,2.713,147.48,147.44,4.57521717]
[1642178659079,2.713,147.48,147.44,14.74581717]
[1642178660581,2.712,147.5,147.44,14.74581717]
[1642178660781,0.25,147.49,147.44,14.74581717]
[1642178661379,0.25,147.49,147.44,4.57521717]
[1642178661607,0.25,147.49,147.44,0.25]
[1642178661781,2.962,147.5,147.44,0.25]
[1642178661982,2.962,147.5,147.4,10.11]
[1642178662381,2.962,147.5,147.4,16.11]
[1642178662583,2.962,147.5,147.41,23.11968663]
[1642178662783,2.962,147.5,147.41,40.69468663]
[1642178662986,2.962,147.5,147.41,46.94468663]
[1642178663384,2.712,147.5,147.41,46.94468663]
[1642178663585,2.712,147.52,147.42,77.86]
[1642178663784,2.712,147.53,147.42,77.86]
[1642178663986,7.76413608,147.55,147.47,10.1685]
[1642178664185,5.05213608,147.55,147.47,17.8035]
[1642178664386,5.05213608,147.55,147.48,8.13469435]
[1642178664584,7.76313608,147.55,147.48,8.38469435]
[1642178664784,2.711,147.55,147.48,8.38469435]
[1642178665185,2.711,147.55,147.48,18.55239435]
[1642178665584,24.1995,147.56,147.48,18.55239435]
[1642178665985,24.4495,147.56,147.48,18.55239435]
[1642178666190,24.1995,147.56,147.48,18.55239435]
[1642178666386,2.711,147.57,147.48,18.55239435]
[1642178666587,27.1764,147.58,147.48,28.41239435]
[1642178666787,7.76313608,147.59,147.48,34.67239435]
[1642178667087,4.05213608,147.59,147.48,36.37317023]
[1642178667889,53.3970926,147.64,147.48,36.37317023]
[1642178668090,59.3970926,147.64,147.49,91.0842]
[1642178668291,3.86885014,147.6,147.52,23.11968663]
[1642178668492,6.57885014,147.6,147.52,38.72968663]
[1642178669494,3.86885014,147.6,147.52,48.89468663]
[1642178669693,2.71,147.63,147.52,48.89468663]
[1642178670693,3.86841728,147.62,147.52,48.89468663]
[1642178671494,3.86841728,147.63,147.52,48.89468663]
[1642178672099,19.4890104,147.63,147.52,48.89468663]
[1642178672302,19.4890104,147.63,147.52,48.64468663]
[1642178672497,19.4890104,147.63,147.52,38.47968663]
[1642178672698,2.71,147.62,147.52,38.47968663]
[1642178673102,6.57841728,147.62,147.52,38.47968663]
[1642178673303,10.1665,147.6,147.52,38.47968663]
[1642178673504,22.6754,147.61,147.52,38.47968663]
[1642178673703,22.6754,147.61,147.52,38.72968663]
[1642178673907,22.6754,147.61,147.52,48.89508663]
[1642178676829,22.6754,147.61,147.52,55.00308663]
[1642178677434,22.6754,147.61,147.52,56.70386251]
[1642178678132,22.6754,147.61,147.52,55.00308663]
[1642178678832,22.1874,147.61,147.52,55.00308663]
[1642178679039,22.1874,147.61,147.52,48.89508663]
[1642178679834,45.27937668,147.61,147.52,48.89508663]
[1642178680333,55.44507668,147.61,147.52,42.89508663]
[1642178680532,2.71,147.6,147.52,38.72968663]
[1642178680932,2.96,147.6,147.52,38.72968663]
[1642178681132,2.96,147.6,147.52,32.72968663]
[1642178682341,10.1671,147.59,147.52,32.72968663]
[1642178682542,10.1671,147.59,147.5,10.1664]
[1642178682739,33.8981,147.59,147.5,6.0]
[1642178682944,39.8981,147.59,147.48,26.0277]
[1642178683338,40.1481,147.59,147.48,26.0277]
[1642178683542,23.00364232,147.58,147.49,24.83855398]
[1642178683740,33.17144232,147.58,147.49,24.83855398]
[1642178683939,33.17144232,147.58,147.49,31.08855398]
[1642178684240,33.17144232,147.58,147.49,6.0]
[1642178684439,33.42144232,147.58,147.48,6.0]
[1642178684637,2.711,147.57,147.45,29.1391]
[1642178685041,10.1707,147.54,147.45,6.0]
[1642178685240,23.09197668,147.53,147.43,24.02694794]
[1642178685440,26.05397668,147.53,147.43,40.13694794]
[1642178685639,26.05397668,147.53,147.43,39.88694794]
[1642178686848,10.1723,147.52,147.43,39.88694794]
[1642178687643,10.1723,147.52,147.43,33.88694794]
[1642178687842,10.1723,147.52,147.43,39.88694794]
[1642178688045,10.4223,147.52,147.43,34.13694794]
[1642178688244,33.17694232,147.5,147.43,10.11]
[1642178688445,33.42694232,147.5,147.43,10.11]
[1642178688645,2.712,147.49,147.39,9.86]
[1642178689045,2.962,147.49,147.39,15.86]
[1642178689845,2.962,147.49,147.39,9.86]
[1642178690045,10.1761,147.46,147.4,3.8985246]
[1642178690448,10.1761,147.46,147.4,4.1485246]
[1642178691446,10.1761,147.46,147.35,9.86]
[1642178691447,10.4261,147.46,147.35,9.86]
[1642178691646,2.713,147.45,147.37,6.0]
[1642178691848,10.1784,147.43,147.35,15.86]
[1642178692245,10.1784,147.43,147.36,27.7945342]
[1642178692446,10.1784,147.43,147.36,33.7945342]
[1642178692845,10.1784,147.43,147.36,34.0445342]
[1642178693948,23.00364232,147.44,147.36,34.0445342]
[1642178695047,33.18104232,147.44,147.36,34.0445342]
[1642178697047,33.18104232,147.44,147.36,33.7945342]
[1642178697849,10.1774,147.44,147.36,33.7945342]
[1642178698047,35.8412,147.46,147.36,40.2215342]
[1642178698348,33.1282,147.46,147.36,50.0815342]
[1642178698548,22.9516,147.46,147.36,50.0815342]
[1642178698748,22.9516,147.46,147.36,50.3315342]
[1642178699348,22.9516,147.46,147.36,60.5081342]
[1642178700350,22.6449,147.48,147.36,62.20891008]
[1642178700551,22.6449,147.48,147.36,62.46891008]
[1642178700750,24.2223,147.5,147.36,130.46891008]
[1642178701151,2.713,147.52,147.36,130.46891008]
[1642178701352,2.712,147.53,147.37,146.8415]
[1642178701553,2.962,147.53,147.45,10.1702]